Cogmind - Beta 15 @@@ ROGUE MODE // 2025.07.12 @ 18:17:18 Player: LameThyst Result: Destroyed by as-43865 with Assembled Heavy Rifle Performance ------------- Evolutions (0) 0 Regions Visited (2) 400 Robots Destroyed (22) 110 Value Destroyed (472) 472 Prototype IDs (0) 0 Alien Tech Used (0) 0 Bonus (0) 0 TOTAL SCORE: 982 Bonus ------- None Cogmind --------- Core Integrity 0/250 Matter 223/300 Energy 125/125 System Corruption 0% Temperature Cool (40) Movement Rolling (80) Location -10/Mines Parts ------- > --- POWER (1) -------- Light Ion Engine > --- PROPULSION (2) --- Wheel Wheel > --- UTILITY (2) ------ Small Storage Unit Seismic Detector > --- WEAPON (2) ------- Medium Laser Light Assault Rifle > --- INVENTORY (8) ---- Light Ion Engine High-capacity Storage Unit EM Pulse Gun Mining Claw Peak State ------------ > --- POWER ------------ Light Ion Engine > --- PROPULSION ------- Light Treads Light Treads > --- UTILITY ---------- Small Storage Unit Seismic Detector > --- WEAPON ----------- Medium Laser Light Assault Rifle > --- INVENTORY -------- Light Ion Engine Compact Wheel EM Pulse Gun [Rating: 7] Favorites ----------- Power Light Ion Engine Engine Light Ion Engine Propulsion Light Treads Treads Light Treads Wheel Compact Wheel Utility Small Storage Unit Device Seismic Detector Storage Small Storage Unit Weapon Light Assault Rifle Energy Gun Medium Laser Ballistic Gun Light Assault Rifle Slashing Weapon Mining Claw Build | -11 -10 -10 ------- Run | Yrd Mat Min Slots Evolved . | . . . Power . | . . . Propulsion . | . . . Utility . | . . . Weapon . | . . . Parts Attached 20 | 7 8 5 Power 7 | 1 4 2 Engine 7 | 1 4 2 Core . | . . . Reactor . | . . . Propulsion 5 | 2 1 2 Treads 2 | 2 . . Leg . | . . . Wheel 3 | . 1 2 Hover . | . . . Flight . | . . . Utility 4 | 2 1 1 Device 3 | 1 1 1 Storage 1 | 1 . . Processor . | . . . Hackware . | . . . Protection . | . . . Artifact . | . . . Weapon 4 | 2 2 . Energy Gun 1 | 1 . . Energy Cannon . | . . . Ballistic Gun 2 | 1 1 . Ballistic Cannon . | . . . Launcher . | . . . Special Weapon . | . . . Impact Weapon . | . . . Slashing Weapon 1 | . 1 . Piercing Weapon . | . . . Special Melee Weapon . | . . . Unidentified Prototypes . | . . . Parts Lost 7 | . . 7 Power 1 | . . 1 Propulsion 3 | . . 3 Utility 2 | . . 2 Weapon 1 | . . 1 Highest Loss Streak 7 | . . 7 To Critical Strikes . | . . . Average Backups 5 | 2 6 4 Power . | . 1 . Propulsion . | . . . Utility 1 | . 2 1 Weapon 2 | . 2 2 Tool/Special . | . . . Unused Backups 3 | . 1 2 Power . | . . . Propulsion . | . . . Utility 1 | . . 1 Weapon 2 | . 1 1 Tool/Special . | . . . Average Slot Usage (%) 93 | . 100 76 Engine 13 | . 14 13 Treads 21 | . 27 6 Device 13 | . 14 13 Storage 14 | . 14 14 Energy Gun 9 | . 9 10 Ballistic Gun 17 | . 17 16 Peak Build Rating 7 | 7 7 7 Average Rating 6 | 5 7 5 On Entrance 4 | . 7 7 Naked Turns . | . . . Heaviest Build 14 | 12 14 14 Greatest Support 40 | 40 40 40 Greatest Overweight (x) 3 | . . 3 Average Overweight (x) . | . . 1 Largest Inventory Capacity 8 | 8 8 8 Average Capacity 7 | 7 8 8 Most Carried 8 | 5 8 8 Average Carried 5 | 2 6 4 Final Capacity 8 | 8 8 8 Final Carried 8 | 5 8 4 Class Distribution -------------------- 100% | Mutant Dominant Class ---------------- Mutant | -10/Materials Mutant | -10/Mines Resources | -11 -10 -10 ----------- Run | Yrd Mat Min Matter Collected 505 | 282 195 28 Remotely . | . . . Salvage Created 602 | 104 470 28 Parts 45 | 12 33 . Haulers Intercepted . | . . . Recyclers Shooed . | . . . Parts Field Recycled . | . . . Retrieved Matter . | . . . Parts Self-Destructed . | . . . Prevented . | . . . Kills | -11 -10 -10 ------- Run | Yrd Mat Min Combat Hostiles Destroyed 16 | . 13 3 Guns 16 | . 13 3 Classes Destroyed 8 | 2 4 2 Builder 1 | . 1 . Tunneler 4 | 3 1 . Recycler 1 | 1 . . Watcher 1 | . 1 . Swarmer 6 | . 6 . Grunt 7 | . 7 . Demolisher 2 | . . 2 Assembled 1 | . . 1 Best Kill Streak 4 | 3 4 2 Combat Bots Only 3 | . 3 2 Max Kills in Single Turn 2 | 1 2 2 Gunslinging 1 | . 1 1 Exploded . | . . . Melee . | . . . Uniques/NPCs Destroyed . | . . . Combat | -11 -10 -10 -------- Run | Yrd Mat Min Hostile Shots Fired 96 | . 69 27 Missed 25 | . 18 7 Hits 71 | . 51 20 Melee 1 | . . 1 Projectile 70 | . 51 19 AOE 13 | . . 13 Critical Strikes 1 | . 1 . Damage Taken 1194 | . 509 685 Core 256 | . 70 186 Absorbed by Shields . | . . . Regen/Repaired (Parts) 127 | . 127 . Core Remaining (%) 100 | 100 . . Volleys Fired 85 | 12 66 7 Largest 2 | 2 2 2 Hottest 70 | 70 70 70 Shots Fired 166 | 24 128 14 Gun 166 | 24 128 14 Cannon . | . . . Launcher . | . . . Special . | . . . Kinetic 109 | 12 90 7 Thermal 57 | 12 38 7 Explosive . | . . . Electromagnetic . | . . . Robot Hit Streak 13 | 8 13 10 Robot Miss Streak 6 | 1 6 3 Penetration Max . | . . . Secondary Targets 3 | . 2 1 Max Gunslinging Chain 1 | . 1 1 Shots Hit Robots 109 | 17 84 8 Core Hits 42 | 7 29 6 Critical Kills . | . . . Critical Parts Destroyed . | . . . Critical Strikes 5 | . 5 . Burn 5 | . 5 . Melee Attacks 2 | . 2 . Impact . | . . . Slashing 2 | . 2 . Piercing . | . . . Sneak Attacks 1 | . 1 . Combat Hostiles . | . . . Follow-up Attacks . | . . . Damage Inflicted 1195 | 188 921 86 Guns 1148 | 188 874 86 Cannons . | . . . Explosions . | . . . Melee 47 | . 47 . Ramming . | . . . Kinetic 602 | 37 529 36 Thermal 546 | 151 345 50 Explosive . | . . . Electromagnetic . | . . . Impact . | . . . Slashing 47 | . 47 . Piercing . | . . . Highest Corruption . | . . . Average Corruption . | . . . Corruption Purged . | . . . Corruption Blocked . | . . . Overload Shots . | . . . Overflow Damage . | . . . Projectiles . | . . . Explosions . | . . . Melee . | . . . Knockbacks . | . . . Impact . | . . . Kinetic . | . . . Secondary . | . . . Self-Inflicted Damage . | . . . Shots . | . . . Rammed . | . . . Targets Rammed . | . . . Kicked . | . . . Crushed . | . . . Highest Temperature 260 | 80 260 60 Average Temperature 67 | 30 82 34 Received Heat Transfer 228 | . 228 . Effects 3 | . 3 . Interference 3 | . 3 . Siege Activations . | . . . Martial Activations . | . . . Shielding Activations . | . . . Robots Disrupted . | . . . Combat Hostiles . | . . . Robots Corrupted . | . . . Combat Hostiles . | . . . Parts Fried . | . . . Impact Corruptions . | . . . Robots Melted . | . . . Combat Hostiles . | . . . Parts Melted 3 | 1 2 . Heat Transferred 1998 | 444 1406 148 Parts Sabotaged . | . . . Parts Stolen . | . . . Parts Stripped . | . . . Power Chain Reactions . | . . . Alert | -11 -10 -10 ------- Run | Yrd Mat Min Maximum Alert Level . | . . . Low Security (%) 100 | 100 100 100 Level 1 . | . . . Level 2 . | . . . Level 3 . | . . . Level 4 . | . . . Level 5 . | . . . High Security . | . . . Max Security . | . . . Peak Influence 115 | 5 115 50 Initial 31 | . . 31 Average 32 | . 48 10 Influence Increases 413 | 20 343 50 Destroy 0b10 Robot/C 300 | . 260 40 Destroy 0b10 Robot/NC 35 | 20 15 . Destroy Leader 62 | . 52 10 Destroy Structure 1 | . 1 . Lose Combat Pursuer 15 | . 15 . Influence Decreases 413 | 20 260 133 Entered New Map 52 | . . 52 Time Decay 350 | 20 260 70 Lost Part 11 | . . 11 Squads Dispatched 3 | . 3 . Investigation 2 | . 2 . Extermination . | . . . Reinforcement 1 | . 1 . Assault . | . . . Garrison . | . . . Intercept . | . . . Searches Triggered . | . . . Construction Impeded . | . . . Haulers Reinforced . | . . . Active Scanning Responses . | . . . Cargo Convoy Interrupts . | . . . Stealth | -11 -10 -10 --------- Run | Yrd Mat Min Distress Signals 2 | . 1 1 Communications Jammed . | . . . Distress Signals . | . . . Times Spotted 34 | . 24 10 Peak Tracking Total 7 | . 5 7 Tactical Retreats 2 | . 1 1 Traps | -11 -10 -10 ------- Run | Yrd Mat Min Traps Triggered 2 | . 2 . Indirectly . | . . . Trap Hack Attempts . | . . . Triggered . | . . . Disarmed . | . . . Reprogrammed . | . . . Reused . | . . . Traps Extracted . | . . . Installed . | . . . Triggered . | . . . Machines | -11 -10 -10 ---------- Run | Yrd Mat Min Machines Disabled . | . . . Max in Single Turn . | . . . Machines Repaired . | . . . Machines Dismantled . | . . . Machines Sabotaged . | . . . Overloaded Fab Kills . | . . . Hacking | -11 -10 -10 --------- Run | Yrd Mat Min Machines Accessed 5 | . 5 . Terminals 4 | . 4 . Fabricators . | . . . Repair Stations 1 | . 1 . Recycling Units . | . . . Scanalyzers . | . . . Garrison Access . | . . . Total Hacks 12 | . 12 . Successful 8 | . 8 . Failed 4 | . 4 . Catastrophic . | . . . Database Lockouts . | . . . Manual 9 | . 9 . Terminals 10 | . 10 . Fabricators . | . . . Repair Stations 2 | . 2 . Recycling Units . | . . . Scanalyzers . | . . . Garrison Access . | . . . Terminal Hacks . | . . . Fabricator Hacks . | . . . Repair Station Hacks 2 | . 2 . Scan Component 1 | . 1 . Repair 1 | . 1 . Recycling Unit Hacks . | . . . Scanalyzer . | . . . Garrison Access Hacks . | . . . Unauthorized Hacks 6 | . 6 . Terminals 6 | . 6 . Botnet 2 | . 2 . Skim 4 | . 4 . Fabricators . | . . . Repair Stations . | . . . Recycling Units . | . . . Scanalyzers . | . . . Garrison Access . | . . . Data Cores Recovered . | . . . Used . | . . . Hacking Detections 5 | . 5 . Full Trace Events . | . . . Feedback Events . | . . . Feedback Blocked . | . . . Robot Schematics Acquired . | . . . Robots Built . | . . . Authchips . | . . . Time . | . . . Total Robot Build Rating . | . . . Part Schematics Acquired . | . . . Parts Built . | . . . Authchips . | . . . Time . | . . . Total Part Build Rating . | . . . Parts Repaired 1 | . 1 . Time 26 | . 26 . Parts Recycled . | . . . Recycled Matter . | . . . Retrieved Matter . | . . . Retrieved Components . | . . . Parts Scanalyzed . | . . . Part Schematics Acquired . | . . . Parts Damaged . | . . . Bothacking | -11 -10 -10 ------------ Run | Yrd Mat Min Used RIF Installer . | . . . Robots Hacked . | . . . Non-combat . | . . . Combat . | . . . Robot Hacks Applied . | . . . Relay Couplers Released . | . . . Fabnet Peak Effective % . | . . . Robots Rewired . | . . . Allies Hacked . | . . . Hacks Repelled . | . . . Allies | -11 -10 -10 -------- Run | Yrd Mat Min Total Allies . | . . . Largest Group . | . . . Highest-Rated Group . | . . . Highest-Rated Ally . | . . . Total Orders . | . . . Ally Attacks . | . . . Total Damage . | . . . Kills . | . . . Allies Corrupted . | . . . Allies Melted . | . . . Intel | -11 -10 -10 ------- Run | Yrd Mat Min Active Infowar (turns) 1319 | 126 859 334 Seismic 1319 | 126 859 334 Robot Analysis Total . | . . . Derelict Logs Recovered . | . . . Drone Launches . | . . . Drone Recoveries . | . . . Exploration | -11 -10 -10 ------------- Run | Yrd Mat Min Turns Passed 1448 | 210 889 349 Spaces Moved 586 | 100 388 98 Core 57 | 3 . 54 Treads 506 | 97 372 37 Legs . | . . . Wheels 23 | . 16 7 Hover . | . . . Flight . | . . . Fastest Speed 50 | 50 100 80 Average Speed 160 | 156 157 175 Slowest Speed 200 | 160 160 200 Overloaded Moves . | . . . Propulsion Burnouts . | . . . Robots Hopped . | . . . Potential Cave-ins . | . . . Cave-ins Triggered . | . . . Exploration Rate (%) 29 | 4 70 13 Regions Visited 2 Branch Regions 1 Pre-discovered Areas 1 | . . 1 Known Exits Taken . | . . . Unknown Exits Taken 2 | 1 1 . Scrap Searched . | . . . Spaces Dug 1 | . 1 . Terrain Destroyed 1 | . 1 . Melee 1 | . 1 . Projectile . | . . . AOE . | . . . Terrain Rammed . | . . . Walls Destroyed . | . . . Machines Disabled . | . . . Actions | -11 -10 -10 --------- Run | Yrd Mat Min Total 934 | 128 545 261 Wait 223 | 5 70 148 Move 584 | 99 387 98 Hop . | . . . Pick Up 9 | 5 4 . Fast Attach 9 | 7 . 2 Attach 6 | . 1 5 Detach . | . . . Swap 11 | . 10 1 Drop 5 | . 5 . Fire 85 | 12 66 7 Melee 2 | . 2 . Ram . | . . . Kick . | . . . Crush . | . . . Escape Stasis . | . . . Rewire . | . . . Trap . | . . . Miscellaneous . | . . . Route ------- -11/Scrapyard -10/Materials (discovered 2 exits: [*Min x2]) -10/Mines History --------- Turn | Location | Event 8 | -11/Scrapyard | Discovered new exit (range 15) 211 | -11/Scrapyard | Entered Materials 326 | -10/Materials | Build established: Mutant 693 | -10/Materials | Discovered new exit (range 9) 1007 | -10/Materials | Repaired Lgt. Treads 1033 | -10/Materials | Discovered new exit (range 15) 1100 | -10/Materials | Entered Mines 1119 | -10/Mines | Learned location of Storage (-8) 1125 | -10/Mines | Assembled infested the area 1185 | -10/Mines | Core integrity fell below 50% 1187 | -10/Mines | Core integrity fell below 20% 1219 | -10/Mines | Lost 7 parts (1p3n2u1w) 1449 | -10/Mines | Destroyed by as-43865 with Assembled Heavy Rifle Last Messages --------------- 01159_ Lgt. Treads destroyed. 01161_ Com. Wheel destroyed. 01163_ The unstable cave ceiling collapses. 01163_ as-41083 destroyed. 01169_ The unstable cave ceiling collapses. 01169_ as-64789 destroyed. 01170_ The unstable cave ceiling collapses. 01186_ Seismic Detector destroyed. 01186_ Ion Engine destroyed. 01188_ Lgt. Treads destroyed. 01189_ The unstable cave ceiling collapses. 01189_ D-53 Grenadier destroyed. 01189_ Switching to secondary target: D-53 Grenadier. 01189_ D-53 Grenadier destroyed. 01195_ Acquired 9 matter. 01197_ The unstable cave ceiling collapses. 01406_ as-12735 destroyed. 01409_ Acquired 19 matter. 01429_ Acquired Wheel. Map ----- +----------------------------------------------------+ | ???????????????????????????????????????????????? | | ???????????????????????????????????????????????? | | ???????????????????????????????????????????????? | | ???????????????????????????????????????????????? | | ???????????????????????????????????????????????? | | ???????????????????????????????????????????????? | | ???????????????????????????????????????????????? | | ???????????????????????????????????????????????? | | ???????????????????????????????????????????????? | | ???????????????????????????????????????????????? | | ??????????????????????????????#####????????????? | | ??????????????????????????????# ###??????????? | | ?????????????????????????????## # ##?????????? | | ????????????????????###??????# # ##????????? | | ????????????????????#!!??????# ##???????? | | ???????????????????##=!??????## #???????? | | ????????????????????%%%#?????# # #???????? | | ????????????????????#s!%##???## # #???????? | | ????????????????????#!%**##??# ## #???????? | | ?????????????????####|[= #??#### ## #???????? | | ?????????????????? != ##??# # # #???????? | | ??????????????????? =% ##?## # #???????? | | ????????????????????# a ##### #???????? | | ?????????????????????# % ## # ###???????? | | ?????????????????????## # ## ###????????? | | ?????????????????????# @ |! ### # #???????? | | ????????????????????## *=!# # #???????? | | ???????????????????## !%!## # ## ##???????? | | ???????????????????# % # # ##????????? | | ???????????????????# ! ##?????????? | | ???????????????????# # ### # #??????????? | | ???????????????????### # #### # ?????????? | | ?????????????????????# ## #### ##????????? | | ?????????????????????### # # #??? #?????????? | | ?????????????????????? # ???? #?????????? | | ????????????????????? ### ## ## ???? #?????????? | | ????????????????????#???## #% #?????#??????????? | | ?????????????????????????? # ?????????????????? | | ?????????????????????????? # ?????????????????? | | ?????????????????????????? =%?????????????????? | | ???????????????????????????###?????????????????? | | ???????????????????????????????????????????????? | | ???????????????????????????????????????????????? | | ???????????????????????????????????????????????? | | ???????????????????????????????????????????????? | | ???????????????????????????????????????????????? | | ???????????????????????????????????????????????? | | ???????????????????????????????????????????????? | | ???????????????????????????????????????????????? | | ???????????????????????????????????????????????? | +----------------------------------------------------+ Best States ------------- Heat Dissipation 25 Energy Generation 10 Energy Capacity 250 Matter Stores 300 Matter Capacity 300 Sight Range 16 Terrain Scan Density 10 Evasion (%) 44 Recoil Reduction 2 Item Schematics ----------------- None Robot Schematics ------------------ None Fabricated ------------ Nothing Repaired ---------- Lgt. Treads | 9% | -10/Materials Alien Tech Used ----------------- None Achievements -------------- None Challenges ------------ None Game ------ Seed LinkedSchematicSteel Manual? 0 Play Time 00:14:16 Cumulative 79.9 hours Start 2025.07.12 @ 18:05:33 End 2025.07.12 @ 18:17:18 Sessions 1 Manual Loads 0 Difficulty Rogue Special Mode None Game No. 85 Rogue 85 Adventurer 0 Explorer 0 Win Type - Total 0 Types 0/0/0/0/0/0/0/0/0/0 Lore% 44 Gallery% 40 Achievement% 30 Wizard Run 0 Options --------- Layout 1 ASCII 0 Keyboard 0 Movement Mouse Keybinds 0 Fullscreen 2 Font 48/Smallcaps Map View 50x35 Zoom Use 0% Tactical HUD 1 Map Filters NONE Filters NONE Steam 0 RUN: 768f1054-402c-41fa-9b41-9d64ce26d799